bitfinex-derivatives/quotes_ETHF0:USTF0_20250726
["timestamp","ask_amount","ask_price","bid_price","bid_amount"]
[1753503272618,1.0948,3748.0,3747.9,0.8701]
[1753503272826,1.77189927,3748.0,3747.9,2.96786325]
[1753503273227,0.92059927,3748.0,3747.9,3.50139325]
[1753503273423,1.56786,3748.5,3748.4,2.2357]
[1753503273626,3.04150954,3748.5,3748.4,2.2357]
[1753503273824,3.42760954,3748.5,3748.4,2.2357]
[1753503274024,2.89414954,3748.5,3748.4,2.2357]
[1753503274226,2.89414954,3748.5,3748.4,2.76916]
[1753503274427,2.89414954,3748.5,3748.4,2.2357]
[1753503274626,2.89414954,3748.5,3748.4,2.76916]
[1753503279036,2.89414954,3748.5,3748.4,2.2357]
[1753503279236,3.42759954,3748.5,3748.4,2.2357]
[1753503279735,1.77184954,3748.5,3748.4,2.76916]
[1753503279940,0.67704954,3748.5,3748.4,2.76916]
[1753503280834,1.0344,3749.2,3749.1,1.40346]
[1753503281132,1.831,3749.2,3749.1,5.97686]
[1753503281939,2.2171,3749.2,3749.1,5.97686]
[1753503283036,2.2171,3749.2,3749.1,5.4435]
[1753503283242,2.2171,3749.2,3749.1,5.97686]
[1753503284734,0.6477,3749.2,3749.1,5.97686]
[1753503284940,1.831,3749.4,3749.3,2.76903]
[1753503286038,0.8912,3749.6,3749.5,2.769]
[1753503286236,1.831,3749.6,3749.5,2.769]
[1753503286644,2.2171,3749.6,3749.5,2.2357]
[1753503286838,2.2171,3749.6,3749.5,2.769]
[1753503287039,1.831,3749.6,3749.5,2.769]
[1753503287545,2.2171,3749.6,3749.5,2.769]
[1753503288542,2.2171,3749.6,3749.5,2.2357]
[1753503289144,2.2171,3749.6,3749.5,2.769]
[1753503290841,0.73325,3749.9,3749.5,2.769]
[1753503290842,0.6397,3749.9,3749.8,2.76896]
[1753503291042,2.4171,3749.9,3749.8,2.76896]
[1753503292346,2.031,3749.9,3749.8,2.76896]
[1753503294843,0.2,3749.9,3749.8,3.50112325]
[1753503295043,0.87067764,3749.9,3749.8,3.50112325]
[1753503295639,0.2,3749.9,3749.8,3.50112325]
[1753503297448,2.031,3749.9,3749.8,2.76896]
[1753503297649,2.4171,3749.9,3749.8,2.76896]
[1753503299044,2.25873236,3749.9,3749.6,0.53328]
[1753503299253,2.2171,3749.7,3749.6,0.92638]
[1753503299553,2.2171,3749.7,3749.6,1.61718]
[1753503299747,2.2171,3749.7,3749.6,2.40428]
[1753503299950,2.2171,3749.7,3749.6,2.75998]
[1753503301655,2.88480093,3749.7,3749.6,2.75998]
[1753503302356,2.88480093,3749.7,3749.6,2.2267]
[1753503302555,2.88480093,3749.7,3749.6,1.2898]
[1753503302754,2.88480093,3749.7,3749.6,1.82309]
[1753503302961,2.88480093,3749.7,3749.6,2.74059]
[1753503305060,2.88480093,3749.7,3749.6,1.82309]
[1753503305551,2.88480093,3749.7,3749.6,2.74059]
[1753503313258,2.88668419,3749.7,3749.6,2.74059]
[1753503313861,2.2171,3749.7,3749.6,2.74059]
[1753503317254,0.2,3749.9,3749.8,2.74606]
[1753503317457,0.2,3749.9,3749.8,3.47822325]
[1753503319562,0.5148,3750.4,3750.3,1.46459]
[1753503319761,1.8776,3750.4,3750.3,5.95379]
[1753503320358,1.17,3750.4,3750.3,5.95379]
[1753503320561,0.6552,3750.4,3750.3,5.95379]
[1753503320965,0.9654,3750.6,3750.5,2.74596]
[1753503321160,0.4506,3750.6,3750.5,2.74596]
[1753503321573,2.2692,3750.8,3750.7,1.46453]
[1753503321861,2.2692,3750.8,3750.7,2.74593]
[1753503322258,1.8776,3750.8,3750.7,2.74593]
[1753503323068,2.2692,3750.8,3750.7,2.74593]
[1753503326075,1.8776,3750.8,3750.7,2.74593]
[1753503326878,2.2692,3750.8,3750.7,2.74593]
[1753503327077,1.8776,3750.8,3750.7,2.74593]
[1753503327573,2.2692,3750.8,3750.7,2.74593]
[1753503330370,1.2666,3751.0,3750.9,0.5331]
[1753503330575,2.205,3751.0,3750.9,2.7413]
[1753503331071,0.9384,3751.2,3751.1,0.53308]
[1753503331278,1.8135,3751.2,3751.1,3.47344325]
[1753503331865,1.8135,3751.2,3751.1,2.74128]
[1753503333372,1.8635,3751.5,3751.4,1.38493]
[1753503333572,2.255,3751.5,3751.4,2.74123]
[1753503335171,0.9251,3751.5,3751.4,6.68119325]
[1753503335375,0.05,3751.5,3751.4,6.68119325]
[1753503335576,0.4848,3751.5,3751.4,5.94903]
[1753503335780,1.8635,3751.5,3751.4,5.94903]
[1753503336681,2.255,3751.5,3751.4,5.94903]
[1753503337875,2.255,3751.5,3751.4,5.416]
[1753503338078,2.255,3751.5,3751.4,4.37623]
[1753503338280,2.255,3751.5,3751.4,5.94903]
[1753503340181,2.255,3751.5,3751.4,2.74123]
[1753503341479,0.9251,3751.5,3751.3,0.53304]
[1753503341683,2.205,3751.4,3751.3,2.74124]
[1753503343880,1.3787,3751.4,3751.2,3.74086]
[1753503344087,2.205,3751.3,3751.2,4.37626]
[1753503344286,2.205,3751.3,3751.2,5.94906]
[1753503344488,2.205,3751.3,3751.2,2.74126]
[1753503345385,1.8135,3751.3,3751.2,5.94906]
[1753503347190,2.205,3751.3,3751.2,5.94906]
[1753503347984,0.2466,3750.7,3750.6,3.651]
[1753503348183,2.205,3750.7,3750.6,5.10225]
[1753503348489,2.205,3750.7,3750.6,5.94915]
[1753503349096,1.8135,3750.7,3750.6,5.94915]
[1753503349992,2.205,3750.7,3750.6,5.94915]
[1753503350596,1.8135,3750.7,3750.6,5.94915]
[1753503352001,2.205,3750.7,3750.6,5.94915]
[1753503353602,2.205,3750.7,3750.6,5.416]
[1753503353899,1.6638,3750.6,3750.5,0.53316]
[1753503354104,2.205,3750.6,3750.5,0.92036]
[1753503354301,2.205,3750.6,3750.2,3.2078]
[1753503354302,0.8751,3750.4,3750.3,0.92039]
[1753503354497,2.205,3750.4,3750.3,1.16859]
[1753503354808,2.205,3750.4,3750.3,2.74139]
[1753503355903,1.8135,3750.8,3750.7,0.8519]
[1753503356103,1.8135,3750.8,3750.7,2.74133]
[1753503356308,2.205,3750.8,3750.7,0.3872]
[1753503356600,0.8751,3750.6,3750.5,0.53315]
[1753503356808,2.205,3750.6,3750.5,0.53315]
[1753503357007,2.205,3750.6,3750.5,0.92035]
[1753503357208,2.205,3750.6,3750.5,1.16855]
[1753503357399,2.205,3750.6,3750.5,2.74135]
[1753503358104,2.205,3750.6,3750.2,3.2078]
[1753503358105,1.40825,3750.6,3750.3,0.3872]
[1753503358409,2.205,3750.3,3750.2,3.2078]
[1753503358907,2.73819,3750.3,3750.2,3.2078]
[1753503359609,2.205,3750.3,3750.2,3.2078]
[1753503359812,2.73819,3750.3,3750.2,3.2078]
[1753503360009,2.205,3750.3,3750.2,3.741]
[1753503360308,2.205,3750.3,3750.2,5.9079]
[1753503361005,2.205,3750.3,3750.2,4.462]
[1753503361200,0.8655,3750.0,3749.8,4.10666]
[1753503361404,2.1434,3749.9,3749.8,3.2078]
[1753503362105,2.67665,3749.9,3749.8,3.2078]
[1753503362304,2.1434,3749.9,3749.8,3.74106]
[1753503362510,2.1434,3749.9,3749.8,5.89676]
[1753503363105,2.67665,3749.9,3749.8,5.3635]
[1753503363304,2.67665,3749.9,3749.8,4.891]
[1753503363503,2.67665,3749.9,3749.8,4.4508]
[1753503363701,2.67665,3749.9,3749.8,3.2078]
[1753503364712,2.1434,3749.9,3749.8,3.74106]
[1753503365207,2.67665,3749.9,3749.8,3.2078]
[1753503365415,2.67665,3749.9,3749.8,3.5734]
[1753503365612,2.67665,3749.9,3749.8,3.8104]
[1753503366114,2.1434,3749.9,3749.8,5.3635]
[1753503366509,2.67665,3749.9,3749.8,5.3635]
[1753503366703,2.67665,3749.9,3749.8,4.4508]
[1753503368110,2.67665,3749.9,3749.8,4.891]
[1753503368310,2.67665,3749.9,3749.8,5.3635]
[1753503368511,2.67665,3749.9,3749.8,4.4508]
[1753503368711,2.67665,3749.9,3749.8,3.2078]
[1753503368915,2.67668,3749.7,3749.6,1.5153]
[1753503370311,2.67668,3749.7,3749.6,2.1557]
[1753503372718,2.1434,3749.3,3749.2,4.9979]
[1753503372915,2.67673,3749.3,3749.2,4.9979]
[1753503373317,2.67673,3749.3,3749.2,5.3635]
[1753503373620,1.39887,3749.0,3748.9,1.7155]
[1753503373808,0.2345,3749.0,3748.9,2.88786325]
[1753503374117,1.00514,3749.2,3749.1,2.1557]
[1753503374318,2.29974,3749.2,3749.1,2.1557]
[1753503374818,3.2078,3749.8,3748.8,1.6832]
[1753503374819,1.39889,3748.9,3748.8,1.6832]
[1753503375012,2.29979,3748.9,3748.8,2.1557]
[1753503375213,1.87069,3748.9,3748.8,2.1557]
[1753503375414,1.39889,3748.9,3748.8,2.1557]
[1753503375616,0.53339,3748.9,3748.8,2.88786325]
[1753503375914,2.6767,3749.5,3749.4,2.1557]
[1753503376812,0.53338,3749.0,3748.9,0.6026]
[1753503377010,2.67678,3749.0,3748.9,1.243]
[1753503377516,2.67678,3749.0,3748.9,2.1557]
[1753503378918,2.67678,3749.0,3748.9,0.8108]
[1753503379222,2.67682,3748.7,3748.6,1.5153]
[1753503379625,2.67682,3748.7,3748.6,1.8174]
[1753503379824,2.67682,3748.7,3748.6,2.1557]
[1753503382622,2.67682,3748.7,3748.6,0.6026]
[1753503383020,2.29982,3748.7,3748.6,2.1557]
[1753503383226,1.87072,3748.7,3748.6,2.1557]
[1753503383619,2.29982,3748.7,3748.6,2.1557]
[1753503384020,2.67682,3748.7,3748.6,2.1557]
[1753503385023,2.67682,3748.7,3748.6,1.243]
[1753503385235,1.39894,3748.5,3748.4,1.8174]
[1753503385422,2.67684,3748.5,3748.4,2.1557]
[1753503387526,1.7664,3748.5,3748.4,2.68916]
[1753503388327,2.29984,3748.5,3748.4,2.1557]
[1753503388628,2.29984,3748.5,3748.4,2.68916]
[1753503389027,2.29984,3748.5,3748.4,2.1557]
[1753503389227,2.67684,3748.5,3748.4,2.1557]
[1753503389735,2.1434,3748.5,3748.4,2.68916]
[1753503390728,2.1434,3748.5,3748.4,2.1557]
[1753503391123,2.1434,3748.5,3748.4,1.5153]
[1753503391323,2.67684,3748.5,3748.4,2.1338]
[1753503392527,2.1434,3748.5,3748.4,2.1338]
[1753503392726,2.67684,3748.5,3748.4,2.1338]
[1753503392920,2.1434,3748.5,3748.4,2.1338]
[1753503393329,2.67684,3748.5,3748.4,2.1338]
[1753503393532,2.1434,3748.5,3748.4,2.66726]
[1753503393932,6.8111,3749.2,3749.1,2.146]
[1753503394232,6.4326,3749.2,3749.1,2.87816325]
[1753503394536,6.96594,3749.2,3749.1,2.87816325]
[1753503394734,7.34444,3749.2,3749.1,2.87816325]
[1753503394936,7.34444,3749.2,3749.1,2.146]
[1753503395238,6.8111,3749.2,3749.1,2.67936]
[1753503396036,2.1521,3749.2,3749.1,2.67936]
[1753503396836,2.68544,3749.2,3749.1,2.146]
[1753503398938,2.1521,3749.2,3749.1,2.67936]
[1753503399639,2.68544,3749.2,3749.1,2.67936]
[1753503400039,2.1521,3749.2,3749.1,2.67936]
[1753503400441,2.68544,3749.2,3749.1,2.67936]
[1753503400634,2.1521,3749.2,3749.1,2.67936]
[1753503401240,2.1521,3749.2,3749.1,2.146]
[1753503401844,2.1521,3749.2,3749.1,2.67936]
[1753503402038,1.7736,3749.2,3749.1,2.67936]
[1753503402233,2.1521,3749.5,3749.4,1.39722]
[1753503402432,2.82102938,3749.5,3749.4,2.67932]
[1753503402637,3.35432938,3749.5,3749.4,2.67932]
[1753503403143,3.35432938,3749.5,3749.4,1.2275]
[1753503403344,3.35432938,3749.5,3749.2,1.5275]
[1753503403345,1.40963,3749.3,3749.2,1.5275]
[1753503403646,0.8763,3748.8,3748.7,1.1034]
[1753503403847,2.1521,3748.8,3748.7,1.1034]
[1753503404041,2.6855,3748.8,3748.7,0.609]
[1753503404346,1.40973,3748.6,3748.5,0.609]
[1753503404541,2.68553,3748.6,3748.5,0.609]
[1753503405056,2.68553,3748.6,3748.5,0.3636]
[1753503406051,3.35477966,3748.6,3748.5,0.3636]
[1753503406251,2.68553,3748.6,3748.5,0.609]
[1753503407460,0.99342,3748.7,3748.5,2.67944]
[1753503407653,0.99342,3748.7,3748.6,2.67943]
[1753503407654,0.8763,3748.7,3748.6,2.67943]
[1753503408252,1.7736,3748.7,3748.6,2.146]
[1753503408461,2.1521,3748.7,3748.6,2.146]
[1753503408855,2.1521,3748.7,3748.6,2.67943]
[1753503410260,2.68552,3748.7,3748.6,2.146]
[1753503410855,3.35464824,3748.7,3748.6,2.146]
[1753503412959,0.8763,3748.5,3748.4,1.07295]
[1753503413156,2.1521,3748.5,3748.4,2.18505]
[1753503413355,2.1521,3748.5,3748.4,2.67945]
[1753503414864,2.68554,3748.5,3748.4,2.67945]
[1753503416267,2.1521,3748.5,3748.4,2.67945]
[1753503416463,2.68554,3748.5,3748.4,2.67945]
[1753503416665,2.1521,3748.5,3748.4,2.146]
[1753503417766,2.68554,3748.5,3748.4,2.146]
[1753503418266,2.1521,3748.5,3748.4,2.146]
[1753503419766,2.68554,3748.5,3748.4,2.146]
[1753503420366,2.1521,3748.5,3748.4,2.67946]
[1753503420771,2.1521,3748.5,3748.4,2.146]
[1753503421070,1.7736,3748.5,3748.4,2.146]
[1753503422966,0.9099,3748.6,3748.5,2.1447]
[1753503423369,1.7606,3748.6,3748.5,2.1447]
[1753503423864,2.29403,3748.6,3748.5,2.1447]
[1753503424068,2.65733,3748.6,3748.5,2.1447]
[1753503425668,2.29407,3748.3,3748.2,1.5263]
[1753503425970,2.29407,3748.3,3748.2,2.1447]
[1753503425971,2.65737,3748.3,3748.2,2.1447]
[1753503427472,2.34037,3748.3,3748.2,2.1447]
[1753503427868,2.65737,3748.3,3748.2,2.1447]
[1753503434370,3.32787733,3748.3,3748.2,2.1447]
[1753503441876,2.79440733,3748.3,3748.2,2.1447]
[1753503442181,2.29402,3748.7,3748.6,1.2912]
[1753503442375,2.29402,3748.7,3748.6,2.1447]
[1753503442376,2.96458654,3748.7,3748.6,2.1447]
[1753503442775,3.32788654,3748.7,3748.6,2.1447]
[1753503443982,2.96458654,3748.7,3748.6,2.1447]
[1753503444978,2.43116654,3748.7,3748.6,2.1447]
[1753503445173,0.67056654,3748.7,3748.6,2.67813]
[1753503445479,2.29397,3749.1,3749.0,2.1447]
[1753503445680,2.96445819,3749.1,3749.0,2.1447]
[1753503446080,3.32775819,3749.1,3749.0,2.1447]
[1753503447486,3.32775819,3749.1,3749.0,0.3705]
[1753503448680,3.32775819,3749.1,3749.0,0.6003]
[1753503448983,3.32775819,3749.1,3749.0,0.3705]
[1753503450481,2.79438819,3749.1,3749.0,2.67107]
[1753503450882,3.32774819,3749.1,3749.0,2.67107]
[1753503451491,2.79438819,3749.1,3749.0,2.67107]
[1753503452183,2.43108819,3749.1,3749.0,2.67107]
[1753503452383,0.67048819,3749.1,3749.0,2.67107]
[1753503453789,5.1387,3749.7,3749.6,0.8517]
[1753503453987,1.14981769,3749.7,3749.6,2.1305]
[1753503454183,1.14981769,3749.7,3749.6,2.66379]
[1753503454690,1.99791769,3749.7,3749.6,2.1305]
[1753503454988,2.43901769,3749.7,3749.6,2.66379]
[1753503455189,1.27391769,3749.7,3749.6,2.66379]
[1753503455390,2.43901769,3749.7,3749.6,2.66379]
[1753503455791,2.77841769,3749.7,3749.6,2.66379]
[1753503456387,2.1083,3749.7,3749.6,2.66379]
[1753503457386,2.64149,3750.3,3750.2,1.3395]
[1753503457692,3.31068135,3750.3,3750.2,2.1305]
[1753503461901,3.31068135,3750.3,3750.2,0.5932]
[1753503462400,1.38132,3750.1,3750.0,1.5049]
[1753503462601,2.64152,3750.1,3750.0,1.5049]
[1753503463102,2.64152,3750.1,3750.0,1.8107]
[1753503463296,2.64152,3750.1,3750.0,2.1305]
[1753503463697,2.64152,3750.1,3749.7,0.9117]
[1753503464003,2.64156,3749.8,3749.7,2.1305]
[1753503465002,2.1083,3749.8,3749.7,2.66377]
[1753503465898,2.1083,3749.8,3749.7,5.87157]
[1753503467403,2.1083,3749.8,3749.4,0.4878]
[1753503467599,2.1083,3749.6,3749.5,1.5504]
[1753503467899,0.9208,3749.8,3749.5,0.8517]
[1753503468094,1.5246,3749.8,3749.7,2.66377]
[1753503468401,2.64156,3749.8,3749.7,0.3671]
[1753503468603,1.6286,3749.5,3749.1,0.4239]
[1753503468804,2.64163,3749.3,3749.2,2.1305]
[1753503469199,2.64163,3749.3,3749.2,0.5932]
[1753503470005,1.38146,3749.1,3749.0,1.5049]
[1753503470302,2.6417,3748.8,3748.7,0.3671]
[1753503470609,2.64173,3748.6,3748.5,2.1305]
[1753503472403,2.1083,3748.6,3748.5,2.1305]
[1753503472608,0.5334,3748.9,3748.8,0.8517]
[1753503472813,2.3023,3748.9,3748.8,2.1305]
[1753503473109,2.6417,3748.9,3748.8,2.1305]
[1753503474410,2.1083,3748.9,3748.8,2.6639]
[1753503474707,0.53337,3749.1,3749.0,2.23997]
[1753503474708,1.3278,3749.1,3749.0,2.23997]
[1753503475010,4.9767,3749.3,3749.2,2.66384]
[1753503475213,5.64552381,3749.3,3749.2,2.66384]
[1753503475512,5.98492381,3749.3,3749.2,2.66384]
[1753503475713,5.98492381,3749.3,3749.2,2.1305]
[1753503476419,2.1083,3749.3,3749.2,2.1305]
[1753503476617,0.4411,3749.6,3749.5,1.6427]
[1753503476915,0.66877281,3749.6,3749.5,2.1305]
[1753503477118,1.99657281,3749.6,3749.5,2.1305]
[1753503477418,2.43767281,3749.6,3749.5,2.1305]
[1753503478414,0.6038,3749.6,3749.5,2.6638]
[1753503478612,1.7689,3749.8,3749.7,2.1305]
[1753503478815,0.66886397,3749.8,3749.7,2.1305]
[1753503479015,1.58966397,3749.8,3749.7,2.1305]
[1753503479321,2.72672397,3749.8,3749.7,2.1305]
[1753503479518,2.97102397,3749.8,3749.7,2.1305]
[1753503480514,2.52992397,3749.8,3749.7,2.1305]
[1753503480716,1.86106,3749.8,3749.7,2.1305]
[1753503481018,1.80537945,3749.8,3749.7,2.1305]
[1753503481719,3.30287945,3749.8,3749.7,2.1305]
[1753503482113,2.63456,3749.8,3749.7,2.1305]
[1753503482707,2.63456,3749.8,3749.7,0.5932]
[1753503482908,3.30302086,3749.8,3749.7,0.5932]
[1753503483221,3.30302086,3749.8,3749.7,0.3671]
[1753503486820,0.53329,3749.6,3749.5,0.449]
[1753503487027,1.85159,3749.6,3749.5,0.449]
[1753503487624,2.16463,3749.3,3749.2,2.0726]
[1753503487920,2.62843,3749.3,3749.2,2.0726]
[1753503489121,2.28863,3749.3,3749.2,2.0726]
[1753503489323,1.13087,3749.7,3749.6,2.0726]
[1753503489625,0.53327,3749.7,3749.6,2.0726]
[1753503490125,2.28857,3749.7,3749.6,2.0726]
[1753503490517,2.95718952,3749.7,3749.6,2.0726]
[1753503490723,3.29698952,3749.7,3749.6,2.0726]
[1753503493123,3.29698952,3749.7,3749.6,1.1969]
[1753503493330,3.29698952,3749.7,3749.6,0.8789]
[1753503493622,3.29698952,3749.7,3749.6,1.7546]
[1753503493828,3.29698952,3749.7,3749.6,2.0726]
[1753503496836,0.66861952,3749.7,3749.6,3.33805325]
[1753503497235,0.53324,3750.0,3749.9,0.8516]
[1753503497435,1.20218583,3750.0,3749.9,2.60584]
[1753503497933,0.53324,3750.0,3749.9,2.0726]
[1753503498332,0.99822,3750.1,3749.9,1.38485]
[1753503498528,1.77502,3750.1,3750.0,2.0726]
[1753503498730,2.44388776,3750.1,3750.0,2.0726]
[1753503498930,0.66886776,3750.1,3750.0,2.60583]
[1753503500735,2.42416776,3750.1,3750.0,2.0726]
[1753503500938,2.76396776,3750.1,3750.0,2.0726]
[1753503501434,2.76396776,3750.1,3750.0,2.60583]
[1753503501633,0.66886776,3750.1,3750.0,2.60583]
[1753503502736,1.13266776,3750.1,3750.0,2.60583]
[1753503503238,0.66886776,3750.1,3750.0,2.60583]
[1753503503638,0.5332,3750.3,3750.0,1.38483]
[1753503503830,0.9288,3750.2,3750.1,2.60582]
[1753503504038,1.2418,3750.2,3750.1,2.60582]
[1753503504931,2.0596,3750.2,3750.1,2.60582]
[1753503505139,2.2885,3750.2,3750.1,2.0726]
[1753503505326,2.0951,3750.0,3749.9,1.4442]
[1753503505526,2.62833,3750.0,3749.9,0.5685]
[1753503505730,2.62833,3750.0,3749.9,2.0726]
[1753503506136,2.62833,3750.0,3749.9,2.60585]
[1753503506337,2.0951,3750.0,3749.9,2.60585]
[1753503507739,2.62833,3750.0,3749.9,2.60585]
[1753503508041,2.0951,3750.0,3749.9,2.60585]
[1753503508341,1.7553,3750.0,3749.9,2.60585]
[1753503509146,2.28853,3750.0,3749.9,2.60585]
[1753503509336,2.28853,3750.0,3749.9,2.0726]
[1753503509842,2.62833,3750.0,3749.9,2.0726]
[1753503510634,2.62833,3750.0,3749.9,2.60585]
[1753503510842,2.0951,3750.0,3749.9,2.60585]
[1753503511039,0.4502,3750.2,3750.1,1.04821]
[1753503511339,0.4502,3750.2,3750.1,2.60981]
[1753503512135,5.32577,3750.5,3750.4,0.8078]
[1753503512338,1.7039,3750.5,3750.4,2.60977]
[1753503512843,2.56676,3750.5,3750.4,2.60977]
[1753503513144,2.56676,3750.5,3750.4,2.0766]
[1753503516339,0.53323,3750.0,3749.9,1.2688]
[1753503516643,2.56683,3750.0,3749.9,2.0766]
[1753503517744,1.4729,3750.6,3750.5,0.5795]
[1753503517938,2.23705,3750.6,3750.5,2.0766]
[1753503518138,2.90209611,3750.6,3750.5,2.0766]
[1753503518338,1.7039,3750.6,3750.5,2.60976]
[1753503518742,0.5739,3750.6,3750.5,2.60976]
[1753503518942,0.288,3750.6,3750.5,2.60976]
[1753503519143,1.7039,3750.9,3750.8,2.60971]
[1753503519447,2.36889767,3750.9,3750.8,2.60971]
[1753503521046,2.69859767,3750.9,3750.8,2.0766]
[1753503521750,3.23169767,3750.9,3750.8,2.0766]
[1753503522243,2.69859767,3750.9,3750.8,2.0766]
[1753503522441,2.69859767,3750.9,3750.8,2.60972]
[1753503523046,2.69859767,3750.9,3750.8,2.0766]
[1753503523347,2.69859767,3750.9,3750.0,1.33307]
[1753503523348,0.8049,3750.6,3750.5,1.4971]
[1753503523649,2.0336,3750.6,3750.5,2.60975]
[1753503525139,2.56675,3750.6,3750.5,1.6078]
[1753503525341,1.33808,3750.4,3750.3,1.1531]
[1753503525537,1.33808,3750.4,3750.3,2.60979]
[1753503525746,0.8049,3750.4,3750.3,2.60979]
[1753503526045,2.0336,3750.4,3750.3,2.60979]
[1753503526444,1.7039,3750.4,3750.3,2.60979]
[1753503526643,0.5739,3750.6,3750.5,2.0766]
[1753503526844,0.5739,3750.6,3750.5,2.60976]
[1753503527646,0.8049,3750.3,3750.2,0.8141]
[1753503527852,2.5668,3750.2,3750.1,3.2078]
[1753503528350,2.5668,3750.2,3750.1,3.5531]
[1753503528944,0.8049,3749.8,3749.7,1.1531]
[1753503529145,0.8049,3749.8,3749.7,2.60987]
[1753503529146,2.0336,3749.8,3749.7,2.60987]
[1753503529541,1.7039,3749.8,3749.7,2.60987]
[1753503530848,2.0336,3749.8,3749.7,2.60987]
[1753503531753,1.7039,3749.8,3749.7,2.60987]
[1753503532145,1.7039,3750.1,3750.0,2.0766]
[1753503532650,2.0336,3750.1,3750.0,2.0766]
[1753503533354,2.56682,3750.1,3750.0,2.0766]
[1753503533551,2.56682,3750.1,3750.0,0.3453]
[1753503533857,2.0336,3749.8,3749.7,2.60987]
[1753503534556,1.7039,3749.8,3749.7,2.60987]
[1753503534947,0.4502,3750.0,3749.9,0.53325]
[1753503535153,1.7039,3750.0,3749.9,2.60985]
[1753503535656,1.7039,3750.0,3749.9,2.0766]
[1753503535856,2.56683,3750.0,3749.9,2.0766]
[1753503539769,2.56683,3750.0,3749.9,1.0283]
[1753503540156,2.56683,3750.0,3749.9,2.1007]
[1753503540355,2.23713,3750.0,3749.9,2.1007]
[1753503540753,2.58043,3750.0,3749.9,2.1007]
[1753503541661,2.12067,3749.7,3749.6,3.5384]
[1753503541860,0.804,3749.3,3749.2,0.8237]
[1753503542054,1.7059,3749.3,3749.2,1.35704]
[1753503542556,2.23923,3749.3,3749.2,2.0745]
[1753503542755,2.58253,3749.3,3749.2,2.0745]
[1753503542957,1.33737,3749.0,3748.9,1.4695]
[1753503543151,2.5826,3748.8,3748.7,4.8149]
[1753503543359,2.5826,3748.8,3748.7,2.0745]
[1753503545662,2.5826,3748.8,3748.7,1.1543]
[1753503546065,2.5826,3748.8,3748.7,1.6071]
[1753503546260,2.5826,3748.8,3748.7,2.0745]
[1753503546766,2.58266,3748.4,3748.3,5.2823]
[1753503549061,2.0492,3748.4,3748.3,5.2823]
[1753503549260,2.0492,3748.4,3748.3,5.81577]
[1753503549462,2.58266,3748.4,3748.3,5.2823]
[1753503550359,2.58266,3748.4,3748.0,0.9202]
[1753503550360,2.0492,3748.4,3748.0,0.9202]
[1753503550556,1.3375,3748.1,3748.0,2.0745]
[1753503550755,2.5827,3748.1,3748.0,2.0745]
[1753503555859,2.58272,3748.0,3747.9,3.2078]
[1753503556063,2.58273,3747.9,3747.8,0.19744654]
[1753503557361,2.58273,3747.9,3747.8,1.04304654]
[1753503557566,2.58273,3747.9,3747.8,2.27194654]
[1753503559066,2.58273,3747.9,3747.8,1.35174654]
[1753503559968,2.58273,3747.9,3747.8,0.74674654]
[1753503560468,2.58273,3747.9,3747.8,0.19744654]
[1753503562668,2.58273,3747.9,3747.8,0.52804654]
[1753503563068,2.58273,3747.9,3747.8,0.19744654]
[1753503566278,2.58273,3747.9,3747.8,6.54e-06]
[1753503567076,3.31489325,3747.9,3747.8,6.54e-06]
[1753503569073,2.0492,3747.3,3747.2,0.34928037]
[1753503569279,2.58281,3747.3,3747.2,0.34928037]
[1753503569576,2.58281,3747.3,3747.2,2.09318037]
[1753503572091,0.53361,3747.3,3747.2,2.82534362]
[1753503572690,0.53358,3747.6,3747.4,1.3308]
[1753503572891,0.53358,3747.6,3747.5,2.74916325]
[1753503573784,0.53356,3747.7,3747.5,2.74916325]
[1753503573985,0.53356,3747.7,3747.6,1.5812]
[1753503574179,0.53356,3747.7,3747.5,0.73216325]
[1753503574180,4.659,3747.9,3747.8,0.7972]
[1753503574386,4.659,3747.9,3747.8,2.017]
[1753503574684,5.19253,3747.9,3747.8,2.017]
[1753503575290,4.659,3747.9,3747.8,2.017]
[1753503575785,5.19253,3747.9,3747.8,2.017]
[1753503576691,0.53353,3747.9,3747.8,2.017]
[1753503576892,0.53353,3747.9,3747.8,2.55054]
[1753503577084,3.74132,3748.0,3747.8,2.55054]
[1753503577390,3.74132,3748.0,3747.9,2.017]
[1753503577591,4.40848829,3748.0,3747.9,2.017]
[1753503578793,5.31708829,3748.0,3747.9,2.017]
[1753503578992,5.61378829,3748.0,3747.9,2.017]
[1753503579291,6.14008829,3748.0,3747.9,2.017]
[1753503579481,6.45158829,3748.0,3747.9,2.017]
[1753503581094,6.14008829,3748.0,3747.9,2.017]
[1753503582284,4.47356829,3748.0,3747.9,2.017]
[1753503582482,3.87496829,3748.0,3747.9,2.017]
[1753503582692,4.40848829,3748.0,3747.9,2.017]
[1753503583983,1.20068829,3748.0,3747.9,5.2248]
[1753503584391,1.20068829,3748.0,3747.9,4.495]
[1753503584392,3.24378829,3748.0,3747.9,4.495]
[1753503584591,3.24378829,3748.0,3747.9,1.2872]
[1753503584791,3.24378829,3748.0,3747.9,2.017]
[1753503585791,1.35654,3747.8,3747.7,1.2872]
[1753503586092,2.57669,3747.5,3747.4,1.5812]
[1753503586294,2.57669,3747.5,3747.4,2.017]
[1753503586597,1.35661,3747.3,3747.2,0.01868037]
[1753503586894,3.30887325,3747.3,3747.2,0.01868037]
[1753503587095,2.57671,3747.3,3747.2,0.01868037]
[1753503587297,3.30887325,3747.3,3747.2,0.01868037]
[1753503587494,3.97722892,3747.3,3747.2,0.01868037]